bitfinex/quotes_SOLUSD_20241218
["timestamp","ask_amount","ask_price","bid_price","bid_amount"]
[1734551892982,41.58188533,212.81,212.72,41.58188533]
[1734551893183,83.16377066,212.74,212.34,23.67346436]
[1734551893384,41.58188533,212.68,212.59,41.58188533]
[1734551893582,41.58188533,212.72,212.64,41.58188533]
[1734551893894,41.58188533,212.75,212.67,41.58188533]
[1734551894096,41.58188533,212.77,212.69,41.58188533]
[1734551894485,41.58188533,212.81,212.74,41.58188533]
[1734551894683,41.58188533,212.83,212.74,41.58188533]
[1734551894890,41.58188533,212.79,212.7,41.58188533]
[1734551895389,41.58188533,212.77,212.7,41.58188533]
[1734551895584,41.58188533,212.83,212.74,41.58188533]
[1734551895789,41.58188533,212.85,212.76,41.58188533]
[1734551895993,41.58188533,212.87,212.78,41.58188533]
[1734551896206,41.58188533,212.85,212.78,41.58188533]
[1734551896393,41.58188533,212.89,212.82,41.58188533]
[1734551896573,41.58188533,212.91,212.82,41.58188533]
[1734551896781,41.58188533,212.87,212.8,41.58188533]
[1734551896980,42.14091863,212.95,212.86,41.58188533]
[1734551897304,41.58188533,212.89,212.82,41.58188533]
[1734551897499,41.58188533,212.84,212.66,7.5382]
[1734551897682,41.58188533,212.81,212.72,41.58188533]
[1734551897882,41.58188533,212.83,212.74,41.58188533]
[1734551898086,41.58188533,212.83,212.76,41.58188533]
[1734551898287,41.58188533,212.85,212.78,41.58188533]
[1734551898486,41.58188533,212.92,212.82,41.58188533]
[1734551898685,0.5590333,212.95,212.88,41.58188533]
[1734551898884,0.5590333,212.95,212.8,11.7478]
[1734551899098,0.5590333,212.95,212.9,41.58188533]
[1734551899286,0.5590333,212.95,212.76,12.9823]
[1734551899287,41.58188533,212.93,212.77,23.776884]
[1734551899489,41.58188533,212.91,212.83,41.58188533]
[1734551899688,0.5590333,212.95,212.89,41.58188533]
[1734551900001,0.5590333,212.95,212.92,41.58188533]
[1734551900206,42.14091863,212.95,212.88,41.58188533]
[1734551900391,42.14091863,212.95,212.77,23.776884]
[1734551900392,0.5590333,212.95,212.92,41.58188533]
[1734551900789,0.5590333,212.95,212.94,41.58188533]
[1734551901008,0.5590333,212.95,212.88,41.58188533]
[1734551901187,41.58188533,212.93,212.84,41.58188533]
[1734551901390,41.58188533,212.91,212.82,41.58188533]
[1734551901591,41.58188533,212.93,212.84,41.58188533]
[1734551901783,41.58188533,212.89,212.82,41.58188533]
[1734551901997,41.58188533,212.89,212.8,41.58188533]
[1734551902201,0.5590333,212.95,212.88,41.58188533]
[1734551902507,0.5590333,212.95,212.93,41.58188533]
[1734551902832,41.58188533,213.02,212.94,41.58188533]
[1734551903421,41.58188533,213.04,212.96,41.58188533]
[1734551903706,41.58188533,213.07,212.98,41.58188533]
[1734551904029,41.58188533,213.07,213.0,41.58188533]
[1734551904230,41.58188533,213.05,212.98,41.58188533]
[1734551904504,0.5590333,213.16,212.97,7.6136]
[1734551904505,41.58188533,213.03,212.97,7.6136]
[1734551904720,41.58188533,213.06,212.97,41.58188533]
[1734551904893,41.58188533,213.01,212.75,10.45232707]
[1734551905239,41.58188533,212.96,212.76,0.70434882]
[1734551905397,41.58188533,212.98,212.89,41.58188533]
[1734551905590,30.5590333,213.16,212.77,0.12549]
[1734551905790,30.0,213.15,212.77,0.12549]
[1734551906005,30.0,213.13,212.78,0.70423329]
[1734551906208,30.5590333,213.16,212.78,20.0]
[1734551906394,30.0,213.12,212.78,20.0]
[1734551906594,41.58188533,213.05,212.95,41.58188533]
[1734551906797,41.58188533,213.07,212.97,41.58188533]
[1734551907090,41.58188533,213.07,212.99,41.58188533]
[1734551907295,41.58188533,213.03,212.93,41.58188533]
[1734551907490,41.58188533,213.07,212.97,41.58188533]
[1734551907689,41.58188533,212.99,212.89,20.0]
[1734551907894,41.58188533,212.95,212.87,41.58188533]
[1734551908103,41.58188533,213.07,212.85,41.58188533]
[1734551908304,34.8634,213.13,212.76,0.70440667]
[1734551908513,41.58188533,213.02,212.93,41.58188533]
[1734551908698,41.58188533,213.0,212.91,41.58188533]
[1734551908883,41.58188533,213.04,212.95,41.58188533]
[1734551909089,41.58188533,213.02,212.95,41.58188533]
[1734551909482,41.58188533,213.02,212.93,41.58188533]
[1734551910100,41.58188533,212.94,212.89,8.1752]
[1734551910398,41.58188533,212.96,212.87,41.58188533]
[1734551910600,41.58188533,212.98,212.89,41.58188533]
[1734551910798,41.58188533,212.96,212.87,41.58188533]
[1734551911094,41.58188533,212.9,212.81,49.12218533]
[1734551911296,41.58188533,212.88,212.79,41.58188533]
[1734551911490,41.58188533,212.9,212.81,41.58188533]
[1734551911695,41.58188533,212.94,212.86,41.58188533]
[1734551911896,41.58188533,212.96,212.86,41.58188533]
[1734551912095,41.58188533,212.98,212.88,41.58188533]
[1734551912289,41.58188533,212.9,212.8,41.58188533]
[1734551912491,41.58188533,212.9,212.77,4.925]
[1734551912492,41.58188533,212.86,212.77,4.925]
[1734551912691,30.0,213.06,212.77,4.925]
[1734551912989,41.58188533,213.01,212.91,41.58188533]
[1734551913188,41.58188533,213.01,212.93,41.58188533]
[1734551913402,41.58188533,212.95,212.84,41.58188533]
[1734551913615,41.58188533,212.97,212.9,41.58188533]
[1734551913825,30.0,213.13,212.96,41.58188533]
[1734551913997,41.58188533,213.03,212.82,23.776884]
[1734551914197,41.58188533,213.03,212.83,0.70429626]
[1734551914601,30.0,213.1,212.85,20.0]
[1734551914809,30.0,213.13,212.82,23.776884]
[1734551914997,41.58188533,213.08,213.0,41.58188533]
[1734551915200,41.58188533,213.05,212.87,2.79798015]
[1734551915403,41.58188533,213.03,212.95,41.58188533]
[1734551915629,41.58188533,213.09,212.99,41.58188533]
[1734551916138,41.58188533,213.13,213.05,41.58188533]
[1734551916434,41.58188533,213.14,213.06,41.58188533]
[1734551917436,41.58188533,213.14,212.97,19.98442088]
[1734551917437,41.58188533,213.1,213.02,41.58188533]
[1734551918227,41.58188533,213.08,213.0,41.58188533]
[1734551918434,41.58188533,213.07,212.97,7.5423]
[1734551918744,41.58188533,213.03,212.97,7.5423]
[1734551918928,20.0,213.04,212.64,136.5]
[1734551919123,20.0,213.03,212.66,7.9826]
[1734551919324,41.58188533,212.9,212.83,7.9826]
[1734551919914,41.58188533,212.92,212.84,41.58188533]
[1734551920315,41.58188533,212.94,212.86,41.58188533]
[1734551920713,41.58188533,212.92,212.84,46.59208533]
[1734551920913,41.58188533,212.88,212.84,5.0102]
[1734551921109,41.58188533,212.86,212.84,5.0102]
[1734551921511,41.58188533,212.92,212.84,5.0102]
[1734551921728,71.58188533,213.07,212.84,5.0102]
[1734551921729,41.58188533,212.98,212.9,41.58188533]
[1734551921904,41.58188533,212.96,212.87,41.58188533]
[1734551922305,41.58188533,212.96,212.89,41.58188533]
[1734551922511,41.58188533,212.96,212.87,41.58188533]
[1734551922706,41.58188533,213.07,212.85,41.58188533]
[1734551922707,41.58188533,212.94,212.85,41.58188533]
[1734551922932,41.58188533,212.9,212.84,5.0102]
[1734551923117,41.58188533,212.86,212.83,7.9826]
[1734551923439,41.58188533,212.85,212.75,7.7924]
[1734551923615,41.58188533,212.84,212.75,49.37428533]
[1734551924123,41.58188533,212.82,212.75,7.7924]
[1734551924322,23.776884,212.93,212.7,2.84312818]
[1734551924323,41.58188533,212.76,212.7,2.84312818]
[1734551924533,41.58188533,212.73,212.64,7.484]
[1734551924712,41.58188533,212.71,212.64,7.484]
[1734551925043,41.58188533,212.69,212.64,7.484]
[1734551925211,41.58188533,212.67,212.64,7.484]
[1734551925810,41.58188533,212.65,212.62,4.9597]
[1734551926010,41.58188533,212.65,212.54,7.8906]
[1734551926011,41.58188533,212.65,212.55,41.58188533]
[1734551926455,41.58188533,212.67,212.59,41.58188533]
[1734551926621,41.58188533,212.69,212.59,41.58188533]
[1734551926822,41.58188533,212.65,212.57,41.58188533]
[1734551927151,41.58188533,212.63,212.54,7.8906]
[1734551927449,41.58188533,212.74,212.51,41.58188533]
[1734551927450,41.58188533,212.59,212.51,41.58188533]
[1734551927814,41.58188533,212.61,212.53,41.58188533]
[1734551928021,41.58188533,212.63,212.55,41.58188533]
[1734551928251,41.58188533,212.65,212.58,41.58188533]
[1734551928529,41.58188533,212.65,212.56,41.58188533]
[1734551928738,41.58188533,212.63,212.56,41.58188533]
[1734551928927,41.58188533,212.63,212.54,41.58188533]
[1734551929437,41.58188533,212.65,212.56,41.58188533]
[1734551929743,41.58188533,212.63,212.56,41.58188533]
[1734551930038,41.58188533,212.67,212.58,41.58188533]
[1734551930346,41.58188533,212.7,212.62,41.58188533]
[1734551930633,41.58188533,212.68,212.6,41.58188533]
[1734551931015,41.58188533,212.66,212.58,41.58188533]
[1734551931216,41.58188533,212.62,212.54,41.58188533]
[1734551931431,41.58188533,212.66,212.56,41.58188533]
[1734551931641,41.58188533,212.7,212.62,41.58188533]
[1734551932008,41.58188533,212.7,212.52,42.28730309]
[1734551932009,41.58188533,212.66,212.58,41.58188533]
[1734551932308,41.58188533,212.66,212.53,11.763]
[1734551932512,41.58188533,212.72,212.63,41.58188533]
[1734551932934,41.58188533,212.72,212.65,41.58188533]
[1734551933131,41.58188533,212.72,212.63,41.58188533]
[1734551933333,41.58188533,212.74,212.65,41.58188533]
[1734551933929,41.58188533,212.7,212.63,41.58188533]
[1734551934443,41.58188533,212.72,212.63,41.58188533]
[1734551934745,41.58188533,212.74,212.67,41.58188533]
[1734551934940,41.58188533,212.78,212.71,41.58188533]
[1734551935147,41.58188533,212.84,212.77,41.58188533]
[1734551935457,41.58188533,212.82,212.73,41.58188533]
[1734551935923,41.58188533,212.8,212.73,41.58188533]
[1734551936128,41.58188533,212.82,212.73,41.58188533]
[1734551936526,71.58188533,212.96,212.71,23.776884]
[1734551936527,41.58188533,212.78,212.71,23.776884]
[1734551936758,41.58188533,212.76,212.7,4.922]
[1734551937060,41.58188533,212.78,212.71,41.58188533]
[1734551937250,41.58188533,212.8,212.73,41.58188533]
[1734551937467,41.58188533,212.8,212.71,41.58188533]
[1734551937839,41.58188533,212.8,212.73,41.58188533]
[1734551938748,41.58188533,212.8,212.71,41.58188533]
[1734551939134,41.58188533,212.78,212.7,4.922]
[1734551940042,41.58188533,212.8,212.71,41.58188533]
[1734551940268,41.58188533,212.78,212.7,4.922]
[1734551940535,41.58188533,212.74,212.65,41.58188533]
[1734551940759,41.58188533,212.68,212.6,4.7078]
[1734551940947,41.58188533,212.66,212.6,4.7078]
[1734551941660,41.58188533,212.68,212.6,4.7078]
[1734551941852,41.58188533,212.7,212.63,41.58188533]
[1734551942052,41.58188533,212.68,212.6,4.7078]
[1734551942266,41.58188533,212.64,212.57,41.58188533]
[1734551942560,41.58188533,212.62,212.55,8.4517]
[1734551942762,41.58188533,212.6,212.5,4.7066]
[1734551942962,41.58188533,212.6,212.51,41.58188533]
[1734551943161,41.58188533,212.62,212.53,41.58188533]
[1734551943857,41.58188533,212.54,212.44,41.58188533]
[1734551944058,41.58188533,212.54,212.45,0.86070672]
[1734551944662,41.58188533,212.56,212.48,41.58188533]
[1734551944874,41.58188533,212.54,212.45,0.86070672]
[1734551945070,41.58188533,212.6,212.52,41.58188533]
[1734551945381,41.58188533,212.6,212.45,1.56645268]
[1734551945382,41.58188533,212.66,212.58,41.58188533]
[1734551945537,41.58188533,212.66,212.53,0.70557797]
[1734551945861,41.58188533,212.54,212.45,0.86070672]
[1734551946053,30.0,212.62,212.45,0.86070672]
[1734551946882,41.58188533,212.47,212.45,0.86070672]
[1734551949337,83.16377066,212.42,212.23,11.7794]
[1734551949564,41.58188533,212.29,212.18,13.4797]
[1734551949760,41.58188533,212.33,212.24,41.58188533]
[1734551949957,41.58188533,212.37,212.29,41.58188533]
[1734551950161,41.58188533,212.34,212.27,41.58188533]
[1734551950361,41.58188533,212.36,212.27,41.58188533]
[1734551950666,41.58188533,212.36,212.29,41.58188533]
[1734551950967,41.58188533,212.38,212.29,41.58188533]
[1734551951162,41.58188533,212.36,212.27,41.58188533]
[1734551951462,41.58188533,212.36,212.29,41.58188533]
[1734551951670,0.85613288,212.35,212.31,41.58188533]
[1734551951853,0.85613288,212.35,212.33,41.58188533]
[1734551952049,0.85613288,212.35,212.26,12.48403124]
[1734551952250,0.85613288,212.35,212.29,41.58188533]
[1734551952557,42.43801821,212.35,212.25,160.54579397]
[1734551952871,42.43801821,212.35,212.27,41.58188533]
[1734551953466,0.85613288,212.35,212.29,41.58188533]
[1734551953850,0.85613288,212.35,212.27,41.58188533]
[1734551954063,41.58188533,212.32,212.25,118.96390864]
[1734551954251,0.85613288,212.31,212.26,41.58188533]
[1734551956047,41.58188533,212.3,212.25,118.96390864]
[1734551956257,0.85613288,212.29,212.25,118.96390864]
[1734551956639,0.85613288,212.29,212.25,160.54579397]
[1734551956968,0.85613288,212.29,212.25,118.96390864]
[1734551957268,0.85613288,212.29,212.28,41.58188533]
[1734551957865,23.67710721,232.09,212.28,41.58188533]
[1734551957866,41.58188533,212.4,212.28,41.58188533]
[1734551958050,41.58188533,212.4,212.32,41.58188533]
[1734551958247,0.85613288,212.39,212.3,41.58188533]
[1734551958444,0.85613288,212.39,212.32,41.58188533]
[1734551958982,41.58188533,212.38,212.3,41.58188533]
[1734551959188,41.58188533,212.35,212.25,118.96390864]
[1734551959380,41.58188533,212.33,212.25,160.54579397]
[1734551959548,41.58188533,212.31,212.25,118.96390864]
[1734551960402,41.58188533,212.29,212.25,118.96390864]
[1734551960692,41.58188533,212.31,212.25,118.96390864]
[1734551961114,41.58188533,212.29,212.25,118.96390864]
[1734551961414,41.58188533,212.27,212.25,118.96390864]
[1734551961700,0.85613288,212.26,212.25,113.54580864]
[1734551963062,0.85613288,212.26,212.25,113.35900864]
[1734551963274,0.85613288,212.26,212.25,113.31220864]
[1734551963981,62.43801821,212.26,212.25,90.39525498]
[1734551964486,42.43801821,212.26,212.25,90.39525498]
[1734551965216,30.0,212.25,212.2,0.5590333]
[1734551965364,83.16377066,212.21,212.2,0.5590333]
[1734551965561,20.0,212.18,212.11,140.0]
[1734551965799,41.58188533,212.12,212.11,140.0]
[1734551966001,42.43801821,212.12,212.11,140.0]
[1734551969910,84.01990354,212.12,212.11,140.0]
[1734551970112,42.43801821,212.12,212.11,140.0]
[1734551970282,84.01990354,212.12,212.11,140.0]
[1734551970599,42.43801821,212.12,212.11,140.0]
[1734551971000,84.01990354,212.12,212.11,140.0]
[1734551971387,41.58188533,212.08,212.0,23.776884]
[1734551971588,41.58188533,212.01,211.99,3.36523772]
[1734551971802,20.0,212.05,211.99,3.36523772]
[1734551972808,41.58188533,212.0,211.99,3.36523772]
[1734551973295,83.16377066,212.0,211.99,3.36523772]
[1734551973492,30.0,212.03,211.99,3.36523772]
[1734551973808,41.58188533,212.0,211.99,3.36523772]
[1734551974399,41.58188533,212.02,211.99,3.36523772]
[1734551974936,41.58188533,212.06,212.0,23.776884]
[1734551975138,0.85613288,212.12,212.05,41.58188533]
[1734551975412,0.85613288,212.12,212.1,41.58188533]
[1734551975739,0.85613288,212.12,212.08,41.58188533]
[1734551975894,0.85613288,212.12,212.09,23.776884]
[1734551976239,41.58188533,212.1,212.04,8.4826]
[1734551976537,41.58188533,212.08,212.0,23.776884]
[1734551976687,0.85613288,212.07,212.05,41.58188533]
[1734551977948,0.85613288,212.07,212.02,41.58188533]
[1734551978094,0.85613288,212.07,212.0,41.58188533]
[1734551978712,0.85613288,212.07,212.04,41.58188533]
[1734551979023,0.85613288,212.07,212.0,41.58188533]
[1734551979203,0.85613288,212.07,211.99,3.36523772]
[1734551979204,0.85613288,212.07,211.99,44.94712305]
[1734551979394,0.85613288,212.07,211.99,3.36523772]
[1734551979594,0.85613288,212.07,211.84,23.6017]
[1734551979595,0.85613288,212.07,211.7,16.35246682]
[1734551979817,0.6216146,211.79,211.55,140.5590333]
[1734551980015,0.70727854,211.78,211.56,0.70883712]
[1734551980191,0.70727854,211.94,211.58,14.15]
[1734551980394,0.70727854,211.98,211.59,0.70799124]
[1734551980698,41.58188533,211.83,211.76,2.7790092]
[1734551980893,41.58188533,211.8,211.67,41.58188533]
[1734551981117,0.88530309,211.79,211.64,42.12955816]
[1734551981316,0.88554796,211.87,211.65,0.35582614]
[1734551981525,0.8850569,211.91,211.65,0.35582614]
[1734551981727,0.88494568,211.9,211.65,0.35582614]
[1734551981929,30.0,211.85,211.64,4.3162987]
[1734551982115,0.88541042,211.84,211.64,4.3162987]
[1734551982313,0.88541042,211.84,211.65,0.35564073]
[1734551982603,18.883612,212.06,211.65,0.35564073]
[1734551982604,0.88529064,211.91,211.83,42.12955816]
[1734551982788,0.88529064,211.91,211.75,42.12955816]
[1734551982789,0.88497279,211.98,211.89,42.12955816]
[1734551982988,0.88497279,211.98,211.86,42.12955816]
[1734551983210,30.0,211.93,211.77,42.12955816]
[1734551983393,0.88537824,211.92,211.82,42.12955816]
[1734551983793,0.88537824,211.92,211.84,42.12955816]
[1734551984032,0.88537824,211.92,211.65,0.3551859]
[1734551984199,20.0,211.88,211.77,42.12955816]
[1734551984395,30.0,211.85,211.64,4.3162987]
[1734551984600,20.0,211.82,211.73,42.12955816]
[1734551984809,0.88558907,211.81,211.77,42.12955816]
[1734551985020,3.24939089,211.91,211.79,42.12955816]
[1734551985021,0.88536876,211.89,211.79,42.12955816]
[1734551985325,0.88536876,211.89,211.75,42.12955816]
[1734551985326,0.88511925,211.98,211.88,42.12955816]
[1734551985614,0.88476699,212.04,211.89,42.12955816]
[1734551985819,30.0,212.02,211.89,42.12955816]
[1734551986001,30.0,211.99,211.84,42.12955816]
[1734551986319,30.0,211.96,211.81,42.12955816]
[1734551986524,30.0,211.93,211.81,42.12955816]
[1734551986829,0.8852766,211.92,211.85,42.12955816]
[1734551986990,0.8852766,211.92,211.75,42.12955816]
[1734551987194,0.88515465,211.95,211.91,42.12955816]
[1734551987397,0.88484407,212.02,211.92,42.12955816]
[1734551987618,0.88484407,212.02,211.89,42.12955816]
[1734551988237,0.88484407,212.02,211.86,42.12955816]
[1734551988398,30.0,212.01,211.82,42.12955816]
[1734551988598,0.88489542,212.0,211.86,42.12955816]
[1734551988917,0.88489542,212.0,211.81,47.04125816]
[1734551989118,1.7410283,212.0,211.81,47.04125816]
[1734551989423,1.7410283,212.0,211.83,42.12955816]
[1734551990107,1.7410283,212.0,211.89,42.12955816]
[1734551990304,1.7410283,212.0,211.87,42.12955816]
[1734551991154,1.7410283,212.0,211.89,42.12955816]
[1734551991336,1.7410283,212.0,211.85,42.12955816]
[1734551991698,0.85613288,212.0,211.87,42.12955816]
[1734551991899,0.85613288,212.0,211.91,42.12955816]
[1734551992337,0.88461342,211.99,211.87,50.58695816]
[1734551992498,0.88461342,211.99,211.87,8.4574]
[1734551992707,0.88461342,211.99,211.81,47.04125816]
[1734551993001,0.88461342,211.99,211.83,42.12955816]
[1734551993242,0.88461342,211.99,211.87,42.12955816]
[1734551993405,0.88457656,211.98,211.89,42.12955816]
[1734551993600,0.88457656,211.98,211.85,42.12955816]
[1734551994419,0.88471487,211.97,211.87,42.12955816]
[1734551994637,0.88472041,211.99,211.89,42.12955816]
[1734551994809,0.88472041,211.99,211.87,42.12955816]
[1734551995014,0.88472041,211.99,211.85,42.12955816]
[1734551995241,0.88472041,211.99,211.83,42.12955816]
[1734551995566,0.88472041,211.99,211.81,47.04125816]
[1734551996302,0.88472041,211.99,211.91,42.12955816]
[1734551996625,0.88472041,211.99,211.91,3.6860704]
[1734551997225,50.0,211.98,211.91,3.6860704]
[1734551997447,30.0,211.94,211.91,3.6860704]
[1734551997636,30.0,211.94,211.71,0.6302283]
[1734551997637,50.0,211.91,211.71,0.6302283]
[1734551997840,20.0,211.85,211.71,0.6302283]
[1734551998169,0.8854911,211.84,211.71,0.6302283]
[1734551998469,23.776884,211.83,211.71,0.6302283]
[1734551998627,20.0,211.78,211.71,0.6302283]
[1734551998948,0.88582478,211.77,211.71,0.6302283]
[1734551999322,0.88582478,211.77,211.42,10.8532]
[1734551999323,50.0,211.72,211.42,10.8532]
[1734551999647,20.0,211.7,211.52,42.12955816]
[1734551999862,0.88624657,211.69,211.52,42.12955816]
[1734552000222,20.88624657,211.69,211.42,10.8532]
[1734552000446,50.88624657,211.69,211.4,11.8254]
[1734552000728,20.0,211.66,211.44,42.12955816]
[1734552000954,20.88625688,211.65,211.44,42.12955816]
[1734552001202,20.88625688,211.65,211.42,42.12955816]
[1734552001880,20.88625688,211.65,211.42,2.84958129]
[1734552002167,20.88625688,211.65,211.41,182.12955816]
[1734552002471,20.88625688,211.65,211.43,42.12955816]
[1734552002677,20.88625688,211.65,211.45,42.12955816]
[1734552002836,20.0,211.63,211.42,42.12955816]
[1734552003036,20.0,211.63,211.41,140.0]
[1734552003037,20.0,211.61,211.41,140.0]
[1734552003238,20.0,211.58,211.41,182.12955816]
[1734552003570,0.88641708,211.57,211.41,182.12955816]
[1734552003768,0.88636941,211.62,211.41,140.0]
[1734552003932,0.88636941,211.62,211.43,42.12955816]
[1734552004728,0.88636941,211.62,211.41,140.0]
[1734552004939,0.88636941,211.62,211.53,42.12955816]
[1734552005140,0.88633096,211.61,211.5,11.0025]
[1734552005382,0.88633143,211.65,211.47,0.6302283]
[1734552005547,0.88633143,211.65,211.47,42.75978646]
[1734552005875,30.0,211.66,211.51,42.12955816]
[1734552006066,0.88633024,211.65,211.47,0.6302283]
[1734552006269,0.88633024,211.65,211.49,42.12955816]
[1734552006469,0.88633024,211.65,211.53,42.12955816]
[1734552006653,0.88633024,211.65,211.56,23.776884]
[1734552006846,0.8861534,211.71,211.56,23.776884]
[1734552007069,0.8861534,211.71,211.59,42.12955816]
[1734552007281,0.88599291,211.77,211.61,42.12955816]
[1734552007487,0.88599291,211.77,211.64,23.776884]
[1734552007644,0.88599291,211.77,211.65,42.12955816]
[1734552007841,0.88599291,211.77,211.67,42.12955816]
[1734552008048,0.88564548,211.84,211.68,23.776884]
[1734552008346,0.88564548,211.84,211.69,42.12955816]
[1734552008548,0.88564548,211.84,211.73,42.12955816]
[1734552008859,30.0,211.87,211.67,42.12955816]
[1734552009049,30.0,211.91,211.69,42.12955816]
[1734552009344,35.64454111,211.91,211.8,42.12955816]
[1734552009556,30.0,211.88,211.81,42.12955816]
[1734552009768,25.83534194,212.06,211.8,6.6337]
[1734552010154,25.83534194,212.06,211.83,42.12955816]
[1734552010353,25.83534194,212.06,211.87,42.12955816]
[1734552010560,18.883612,212.06,211.88,42.12955816]
[1734552010763,18.883612,212.06,211.85,23.776884]
[1734552010944,18.883612,212.06,211.9,42.12955816]
[1734552011146,30.0,212.04,211.91,42.12955816]
[1734552011363,18.883612,212.06,211.93,39.62955816]
[1734552011569,18.883612,212.06,211.96,23.776884]
[1734552011942,18.883612,212.06,211.99,42.12955816]
[1734552012147,18.883612,212.06,211.96,23.776884]
[1734552012567,30.0,212.18,211.96,23.776884]
[1734552012568,30.0,212.13,211.96,65.90644216]
[1734552012974,30.0,212.13,211.98,42.12955816]
[1734552013277,30.0,212.16,211.96,22.776884]
[1734552013577,18.870994,212.17,211.96,22.776884]
[1734552013578,23.88348072,212.25,212.11,42.12955816]
[1734552013765,23.88348072,212.25,212.13,42.12955816]
[1734552013965,23.88348072,212.25,212.15,42.12955816]
[1734552014152,23.88348072,212.25,212.17,42.12955816]
[1734552014778,23.27806403,212.27,212.17,42.12955816]
[1734552015279,30.0,212.31,212.1,10.4866]
[1734552015579,30.0,212.35,212.19,42.12955816]
[1734552015746,30.0,212.39,212.21,42.12955816]
[1734552015952,30.0,212.31,212.17,42.12955816]
[1734552016217,30.0,212.31,212.12,42.12955816]
[1734552016484,30.0,212.35,212.14,42.12955816]
[1734552016773,0.88357604,212.34,212.2,42.12955816]
[1734552016947,0.88333801,212.41,212.24,42.12955816]
[1734552017149,0.88333801,212.41,212.22,42.12955816]
[1734552017347,0.88333801,212.41,212.2,42.12955816]
[1734552017545,30.0,212.39,212.18,42.12955816]
[1734552017784,30.0,212.36,212.14,42.12955816]
[1734552017976,0.883399,212.38,212.11,0.35152822]
[1734552017977,30.0,212.32,212.12,42.12955816]
[1734552018281,0.88366431,212.27,212.16,42.12955816]
[1734552018479,0.88366431,212.27,212.2,42.12955816]
[1734552018652,0.88342035,212.33,212.24,42.12955816]
[1734552018951,6.95172994,212.49,212.26,42.12955816]
[1734552018952,0.88326887,212.4,212.26,42.12955816]
[1734552019158,0.88308911,212.48,212.28,42.12955816]
[1734552019356,30.0,212.46,212.28,42.12955816]
[1734552019580,0.88304907,212.45,212.3,42.12955816]
[1734552019954,0.88304907,212.45,212.32,42.12955816]
[1734552020160,0.88281532,212.49,212.36,42.12955816]
[1734552020556,0.88281532,212.49,212.34,52.84265816]
[1734552020773,0.88281532,212.49,212.34,10.7131]
[1734552021281,0.88281532,212.49,212.34,52.84265816]
[1734552021663,0.88269209,212.48,212.36,42.12955816]
[1734552021878,0.6302283,212.51,212.38,42.12955816]
[1734552022053,0.6302283,212.51,212.4,42.12955816]
[1734552022384,0.6302283,212.51,212.42,42.12955816]
[1734552022771,0.6302283,212.51,212.4,42.12955816]
[1734552022968,0.6302283,212.51,212.45,20.0]
[1734552023162,0.6302283,212.51,212.44,42.12955816]
[1734552023366,0.6302283,212.51,212.42,42.12955816]
[1734552023587,0.6302283,212.51,212.37,42.12955816]
[1734552023767,0.6302283,212.51,212.34,10.7131]
[1734552024266,0.8825946,212.5,212.34,10.7131]
[1734552024665,0.8825946,212.5,212.35,42.12955816]
[1734552024886,0.6302283,212.51,212.39,42.12955816]
[1734552025192,0.6302283,212.51,212.43,42.12955816]
[1734552026058,0.6302283,212.51,212.41,42.12955816]
[1734552026255,0.6302283,212.51,212.39,42.12955816]
[1734552026662,0.6302283,212.51,212.37,42.12955816]
[1734552026988,0.6302283,212.51,212.35,42.12955816]
[1734552027285,0.6302283,212.51,212.34,10.7131]
[1734552027286,41.83154716,212.45,212.34,10.7131]
[1734552027499,41.83154716,212.39,212.34,10.7131]
[1734552027704,41.83154716,212.35,212.29,2.87546016]
[1734552027892,41.83154716,212.39,212.31,41.83154716]
[1734552028204,42.71454873,212.48,212.37,41.83154716]
[1734552028413,41.83154716,212.48,212.41,41.83154716]
[1734552028571,41.83154716,212.5,212.41,41.83154716]
[1734552028894,42.46177546,212.51,212.43,41.83154716]
[1734552029091,0.6302283,212.51,212.43,41.83154716]
[1734552029389,42.46177546,212.51,212.43,41.83154716]
[1734552030192,0.6302283,212.51,212.45,41.83154716]
[1734552030375,0.6302283,212.51,212.4,2.88264284]
[1734552030376,41.83154716,212.47,212.37,41.83154716]
[1734552030576,41.83154716,212.41,212.32,41.83154716]
[1734552030894,41.83154716,212.41,212.33,41.83154716]
[1734552031234,41.83154716,212.43,212.35,41.83154716]
[1734552031399,41.83154716,212.47,212.39,41.83154716]
[1734552031696,1.51286287,212.51,212.28,2.79256908]
[1734552031697,41.83154716,212.49,212.41,41.83154716]
[1734552031900,42.46177546,212.51,212.43,41.83154716]
[1734552032097,42.46177546,212.51,212.45,41.83154716]
[1734552032098,0.6302283,212.51,212.45,41.83154716]
[1734552032398,0.6302283,212.51,212.41,41.83154716]
[1734552032399,0.6302283,212.51,212.47,41.83154716]
[1734552032597,0.6302283,212.51,212.45,41.83154716]
[1734552032976,0.6302283,212.51,212.43,41.83154716]
[1734552033310,41.83154716,212.46,212.37,41.83154716]
[1734552033593,41.83154716,212.41,212.33,41.83154716]